Cogmind - Beta 14 @@@ ROGUE MODE // 2024.08.21 @ 12:46:01 Player: human Result: Destroyed by Y-45 Defender with Heavy Assault Rifle Performance ------------- Evolutions (2) 1000 Regions Visited (4) 800 Robots Destroyed (17) 85 Value Destroyed (635) 635 Prototype IDs (1) 20 Alien Tech Used (0) 0 Bonus (35) 35 TOTAL SCORE: 2575 Bonus ------- High Alert Combat Kills 35 Cogmind --------- Core Integrity 0/550 Matter 201/300 Energy 100/100 System Corruption 0% Temperature Cool (41) Movement Core (200) Ox3 Location -8/Storage Parts ------- > --- POWER (1) -------- (None) > --- PROPULSION (2) --- (None) > --- UTILITY (5) ------ Medium Storage Unit System Shield > --- WEAPON (3) ------- (None) > --- INVENTORY (10) --- High-capacity Storage Unit Improved Signal Interpreter Improved Signal Interpreter Peak State ------------ > --- POWER ------------ Light Deuterium Engine > --- PROPULSION ------- Wheel Compact Wheel > --- UTILITY ---------- Medium Storage Unit Seismic Detector Improved Targeting Computer Particle Charger Improved Light Armor Plating > --- WEAPON ----------- Improved EM Shotgun Improved EM Shotgun EM Pulse Cannon > --- INVENTORY -------- Light Nuclear Core High-capacity Storage Unit Compact Matter Pod Improved Signal Interpreter Improved Signal Interpreter System Shield Missile Launcher Mining Laser Flail [Rating: 26] Favorites ----------- Power Light Deuterium Engine Engine Light Deuterium Engine Power Core Light Nuclear Core Propulsion Wheel Wheel Wheel Utility Medium Storage Unit Device Seismic Detector Storage Medium Storage Unit Processor Improved Targeting Computer Hackware System Shield Protection Improved Light Armor Plating Weapon Improved EM Shotgun Energy Gun Improved EM Shotgun Energy Cannon EM Pulse Cannon Launcher Missile Launcher Special Weapon Mining Laser Impact Weapon Flail Build | -11 -10 -9 -8 -8 ------- Run | Yrd Mat Mat Mat Sto Slots Evolved 4 | . . 2 2 . Power . | . . . . . Propulsion . | . . . . . Utility 3 | . . 2 1 . Weapon 1 | . . . 1 . Parts Attached 39 | 6 4 4 18 7 Power 4 | 1 . 1 1 1 Engine 3 | 1 . 1 1 . Core 1 | . . . . 1 Reactor . | . . . . . Propulsion 5 | 2 . . 2 1 Treads . | . . . . . Leg . | . . . . . Wheel 5 | 2 . . 2 1 Hover . | . . . . . Flight . | . . . . . Utility 13 | 1 2 . 7 3 Device 2 | . . . 2 . Storage 4 | 1 1 . 1 1 Processor 2 | . . . 2 . Hackware 1 | . . . . 1 Protection 4 | . 1 . 2 1 Artifact . | . . . . . Weapon 17 | 2 2 3 8 2 Energy Gun 7 | 2 1 1 3 . Energy Cannon 2 | . . . 1 1 Ballistic Gun . | . . . . . Ballistic Cannon . | . . . . . Launcher 2 | . . . 2 . Special Weapon 3 | . 1 1 . 1 Impact Weapon 3 | . . 1 2 . Slashing Weapon . | . . . . . Piercing Weapon . | . . . . . Special Melee Weapon . | . . . . . Unidentified Prototypes 1 | . 1 . . . Parts Lost 15 | . . . 4 11 Power 2 | . . . . 2 Propulsion 3 | . . . 1 2 Utility 5 | . . . 2 3 Weapon 5 | . . . 1 4 Highest Loss Streak 6 | . . . 2 6 To Critical Strikes . | . . . . . Average Slot Usage (%) 84 | . 81 77 91 69 Engine 9 | . 14 11 8 3 Wheel 19 | . 28 22 17 15 Device 4 | . . . 8 . Storage 11 | . 14 11 9 13 Processor 8 | . . . 12 8 Hackware 1 | . . . . 8 Protection 7 | . 3 11 8 2 Energy Gun 11 | . 19 13 10 4 Energy Cannon 1 | . . . 2 2 Launcher 2 | . . . 4 2 Special Weapon 1 | . 1 7 . 1 Impact Weapon 4 | . . . 7 2 Peak Build Rating 26 | 6 10 11 26 23 Average Rating 16 | 4 7 10 22 17 On Entrance 9 | . 6 10 11 21 Naked Turns . | . . . . . Heaviest Build 37 | 12 18 20 37 29 Greatest Support 26 | 20 20 20 26 26 Greatest Overweight (x) 5 | . . . 3 5 Average Overweight (x) . | . . . . . Largest Inventory Capacity 10 | 8 10 10 10 10 Average Capacity 9 | 6 8 10 10 10 Most Carried 10 | 5 9 10 10 9 Average Carried 7 | 3 6 9 8 5 Final Capacity 10 | 8 10 10 10 10 Final Carried 10 | 4 8 10 9 3 Class Distribution -------------------- 91% | Mutant 8% | Gunner Dominant Class ---------------- Mutant | -10/Materials Mutant | -9/Materials Mutant | -8/Materials Mutant | -8/Storage Resources | -11 -10 -9 -8 -8 ----------- Run | Yrd Mat Mat Mat Sto Matter Collected 494 | 255 . . 239 . Remotely . | . . . . . Salvage Created 632 | . 16 16 554 46 Parts 33 | . 1 2 28 2 Haulers Intercepted . | . . . . . Recyclers Shooed . | . . . . . Parts Field Recycled . | . . . . . Retrieved Matter . | . . . . . Parts Self-Destructed . | . . . . . Prevented . | . . . . . Kills | -11 -10 -9 -8 -8 ------- Run | Yrd Mat Mat Mat Sto Combat Hostiles Destroyed 11 | . . . 10 1 Guns 5 | . . . 5 . Cannons 1 | . . . 1 . AOE 5 | . . . 4 1 Classes Destroyed 7 | . 1 1 5 . Worker 1 | . . . 1 . Builder 1 | . . . 1 . Operator 1 | . . 1 . . Watcher 3 | . 1 . 2 . Grunt 6 | . . . 5 1 Sentry 4 | . . . 4 . Hunter 1 | . . . 1 . Best Kill Streak 7 | . 1 1 7 1 Combat Bots Only 2 | . . . 2 1 Max Kills in Single Turn 2 | . 1 1 2 1 Gunslinging . | . . . . . Exploded 2 | . . . 2 1 Melee . | . . . . . Uniques/NPCs Destroyed . | . . . . . Combat | -11 -10 -9 -8 -8 -------- Run | Yrd Mat Mat Mat Sto Hostile Shots Fired 159 | . 7 26 62 64 Missed 39 | . 1 6 19 13 Damage Taken 1807 | . 80 186 720 821 Core 581 | . 10 20 165 386 Absorbed by Shields . | . . . . . Redirected to Shielding 38 | . 7 31 . . Regen/Repaired (Parts) 29 | . . . 29 . Core Remaining (%) 97 | 100 96 95 . . Volleys Fired 32 | . 3 7 18 4 Largest 3 | . 2 1 3 2 Hottest 153 | . 100 100 153 145 Shots Fired 50 | . 5 7 32 6 Gun 31 | . 4 3 22 2 Cannon 7 | . . . 4 3 Launcher 6 | . . . 6 . Special 6 | . 1 4 . 1 Kinetic . | . . . . . Thermal 10 | . 3 6 . 1 Explosive 6 | . . . 6 . Electromagnetic 34 | . 2 1 26 5 Robot Hit Streak 8 | . 1 1 8 3 Robot Miss Streak 3 | . 1 1 3 . Penetration Max . | . . . . . Secondary Targets . | . . . . . Shots Hit Robots 31 | . 2 2 25 2 Core Hits 30 | . 1 1 26 2 Critical Kills . | . . . . . Critical Parts Destroyed . | . . . . . Critical Strikes . | . . . . . Melee Attacks 21 | . . 3 18 . Impact 21 | . . 3 18 . Slashing . | . . . . . Piercing . | . . . . . Sneak Attacks . | . . . . . Combat Hostiles . | . . . . . Follow-up Attacks . | . . . . . Damage Inflicted 1405 | . 40 35 1249 81 Guns 405 | . 40 35 307 23 Cannons 55 | . . . 55 . Explosions 830 | . . . 772 58 Melee 115 | . . . 115 . Ramming . | . . . . . Kinetic . | . . . . . Thermal 199 | . . 15 126 58 Explosive 646 | . . . 646 . Electromagnetic 445 | . 40 20 362 23 Impact 115 | . . . 115 . Slashing . | . . . . . Piercing . | . . . . . Highest Corruption . | . . . . . Average Corruption . | . . . . . Corruption Purged . | . . . . . Corruption Blocked . | . . . . . Overload Shots . | . . . . . Overflow Damage 44 | . . . 44 . Projectiles . | . . . . . Explosions 31 | . . . 31 . Melee 13 | . . . 13 . Knockbacks . | . . . . . Impact . | . . . . . Kinetic . | . . . . . Secondary . | . . . . . Self-Inflicted Damage 58 | . . . 58 . Shots 2 | . . . 2 . Rammed . | . . . . . Targets Rammed . | . . . . . Kicked . | . . . . . Crushed . | . . . . . Highest Temperature 129 | . 80 52 129 63 Average Temperature 34 | . 40 13 44 22 Received Heat Transfer 819 | . 63 36 297 423 Siege Activations . | . . . . . Robots Corrupted 1 | . . . 1 . Combat Hostiles . | . . . . . Parts Fried 7 | . 1 . 6 . Impact Corruptions 1 | . . . 1 . Robots Melted . | . . . . . Combat Hostiles . | . . . . . Parts Melted 1 | . . 1 . . Heat Transferred 237 | . . 37 150 50 Parts Sabotaged . | . . . . . Parts Stolen . | . . . . . Parts Stripped . | . . . . . Power Chain Reactions 3 | . . . 2 1 Alert | -11 -10 -9 -8 -8 ------- Run | Yrd Mat Mat Mat Sto Peak Influence 509 | . 28 81 509 194 Initial 159 | . . 11 33 159 Average 133 | . 10 40 199 137 Maximum Alert Level 2 | . . . 2 . Low Security (%) 76 | 100 100 100 56 100 Level 1 17 | . . . 32 . Level 2 5 | . . . 11 . Level 3 . | . . . . . Level 4 . | . . . . . Level 5 . | . . . . . High Security . | . . . . . Max Security . | . . . . . Squads Dispatched 8 | . 1 . 7 . Investigation 2 | . . . 2 . Extermination . | . . . . . Reinforcement 3 | . 1 . 2 . Assault . | . . . . . Garrison 3 | . . . 3 . Intercept . | . . . . . Searches Triggered . | . . . . . Construction Impeded 2 | . . . 2 . Haulers Reinforced . | . . . . . Active Scanning Responses . | . . . . . Cargo Convoy Interrupts . | . . . . . Stealth | -11 -10 -9 -8 -8 --------- Run | Yrd Mat Mat Mat Sto Distress Signals 2 | . . . 2 . Communications Jammed . | . . . . . Distress Signals . | . . . . . Times Spotted 46 | . 5 9 21 11 Peak Tracking Total 9 | . 3 4 6 9 Tactical Retreats 6 | . . 2 3 1 Traps | -11 -10 -9 -8 -8 ------- Run | Yrd Mat Mat Mat Sto Traps Triggered 3 | . . . 1 2 Indirectly . | . . . . . Trap Hack Attempts . | . . . . . Triggered . | . . . . . Disarmed . | . . . . . Reprogrammed . | . . . . . Reused . | . . . . . Traps Extracted . | . . . . . Installed . | . . . . . Triggered . | . . . . . Machines | -11 -10 -9 -8 -8 ---------- Run | Yrd Mat Mat Mat Sto Machines Disabled 3 | . . . 3 . Max in Single Turn 1 | . . . 1 . Machines Repaired . | . . . . . Machines Dismantled . | . . . . . Machines Sabotaged . | . . . . . Overloaded Fab Kills . | . . . . . Hacking | -11 -10 -9 -8 -8 --------- Run | Yrd Mat Mat Mat Sto Machines Accessed 8 | . 1 2 3 2 Terminals 7 | . 1 2 2 2 Fabricators . | . . . . . Repair Stations 1 | . . . 1 . Recycling Units . | . . . . . Scanalyzers . | . . . . . Garrison Access . | . . . . . Total Hacks 21 | . 3 3 7 8 Successful 12 | . 1 1 4 6 Failed 9 | . 2 2 3 2 Catastrophic 2 | . . 1 1 . Database Lockouts . | . . . . . Manual 7 | . 1 3 1 2 Terminals 19 | . 3 3 5 8 Fabricators . | . . . . . Repair Stations 2 | . . . 2 . Recycling Units . | . . . . . Scanalyzers . | . . . . . Garrison Access . | . . . . . Terminal Hacks 9 | . 1 . 2 6 Record 1 | . . . . 1 Terminal Index 1 | . . . 1 . Alert Level 1 | . . . . 1 Unreport Threat 1 | . . . . 1 Recall Reinforcements 1 | . . . . 1 Hauler Manifests 1 | . . . . 1 Zone Layout 3 | . 1 . 1 1 Fabricator Hacks . | . . . . . Repair Station Hacks 2 | . . . 2 . Scan Component 1 | . . . 1 . Repair 1 | . . . 1 . Recycling Unit Hacks . | . . . . . Scanalyzer . | . . . . . Garrison Access Hacks . | . . . . . Unauthorized Hacks 1 | . . 1 . . Terminals 1 | . . 1 . . Botnet 1 | . . 1 . . Fabricators . | . . . . . Repair Stations . | . . . . . Recycling Units . | . . . . . Scanalyzers . | . . . . . Garrison Access . | . . . . . Data Cores Recovered 1 | . . 1 . . Used 1 | . . 1 . . Hacking Detections 7 | . 1 1 3 2 Full Trace Events 2 | . . . 2 . Feedback Events . | . . . . . Feedback Blocked . | . . . . . Robot Schematics Acquired . | . . . . . Robots Built . | . . . . . Authchips . | . . . . . Time . | . . . . . Total Robot Build Rating . | . . . . . Part Schematics Acquired . | . . . . . Parts Built . | . . . . . Authchips . | . . . . . Time . | . . . . . Total Part Build Rating . | . . . . . Parts Repaired 1 | . . . 1 . Time 26 | . . . 26 . Parts Recycled . | . . . . . Recycled Matter . | . . . . . Retrieved Matter . | . . . . . Retrieved Components . | . . . . . Parts Scanalyzed . | . . . . . Part Schematics Acquired . | . . . . . Parts Damaged . | . . . . . Bothacking | -11 -10 -9 -8 -8 ------------ Run | Yrd Mat Mat Mat Sto Used RIF Installer . | . . . . . Robots Hacked . | . . . . . Non-combat . | . . . . . Combat . | . . . . . Robot Hacks Applied . | . . . . . Relay Couplers Released . | . . . . . Fabnet Peak Effective % . | . . . . . Robots Rewired . | . . . . . Allies Hacked . | . . . . . Hacks Repelled . | . . . . . Allies | -11 -10 -9 -8 -8 -------- Run | Yrd Mat Mat Mat Sto Total Allies . | . . . . . Largest Group . | . . . . . Highest-Rated Group . | . . . . . Highest-Rated Ally . | . . . . . Total Orders . | . . . . . Ally Attacks . | . . . . . Total Damage . | . . . . . Kills . | . . . . . Allies Corrupted . | . . . . . Allies Melted . | . . . . . Intel | -11 -10 -9 -8 -8 ------- Run | Yrd Mat Mat Mat Sto Robot Analysis Total . | . . . . . Derelict Logs Recovered . | . . . . . Drone Launches . | . . . . . Drone Recoveries . | . . . . . Exploration | -11 -10 -9 -8 -8 ------------- Run | Yrd Mat Mat Mat Sto Turns Passed 882 | 46 106 136 468 126 Spaces Moved 687 | 41 97 122 322 105 Core 10 | 8 . . . 2 Treads . | . . . . . Legs . | . . . . . Wheels 677 | 33 97 122 322 103 Hover . | . . . . . Flight . | . . . . . Fastest Speed 50 | 50 80 80 80 90 Average Speed 90 | 74 80 80 96 97 Slowest Speed 300 | 80 80 80 125 300 Overloaded Moves . | . . . . . Propulsion Burnouts . | . . . . . Robots Hopped . | . . . . . Cave-ins Triggered . | . . . . . Exploration Rate (%) 20 | 4 28 19 28 22 Regions Visited 4 Branch Regions 1 Pre-discovered Areas . | . . . . . Known Exits Taken . | . . . . . Unknown Exits Taken 4 | 1 1 1 1 . Scrap Searched . | . . . . . Spaces Dug 16 | . 1 5 9 1 Terrain Destroyed 71 | . 1 5 61 4 Melee 10 | . . 1 9 . Projectile 6 | . 1 4 . 1 AOE 55 | . . . 52 3 Terrain Rammed . | . . . . . Walls Destroyed . | . . . . . Machines Disabled . | . . . . . Actions | -11 -10 -9 -8 -8 --------- Run | Yrd Mat Mat Mat Sto Total 854 | 56 118 138 421 121 Wait 26 | . 4 1 17 4 Move 683 | 40 96 121 321 105 Hop . | . . . . . Pick Up 39 | 10 8 2 18 1 Fast Attach . | . . . . . Attach 25 | 6 2 . 10 7 Detach . | . . . . . Swap 14 | . 2 4 8 . Drop 14 | . 3 . 11 . Fire 32 | . 3 7 18 4 Melee 21 | . . 3 18 . Ram . | . . . . . Kick . | . . . . . Crush . | . . . . . Escape Stasis . | . . . . . Rewire . | . . . . . Trap . | . . . . . Miscellaneous . | . . . . . Route ------- -11/Scrapyard -10/Materials (discovered 2 exits: *Mat / [*Min]) -9/Materials -8/Materials -8/Storage (discovered 1 exit: [Rec]) History --------- Turn | Location | Event 6 | -11/Scrapyard | Discovered new exit (range 16) 47 | -11/Scrapyard | Entered Materials 147 | -10/Materials | Discovered new exit (range 4) 152 | -10/Materials | Discovered new exit (range 16) 153 | -10/Materials | Entered another Materials area 153 | -9/Materials | Evolved 2 slots: Utility x2 284 | -9/Materials | Discovered new exit (range 4) 289 | -9/Materials | Entered another Materials area 289 | -8/Materials | Evolved 2 slots: Utility x1, Weapon x1 336 | -8/Materials | Build established: Mutant 345 | -8/Materials | Repaired Mining Laser 446 | -8/Materials | Discovered new exit (range 10) 549 | -8/Materials | Garrison activated, responded to threat 757 | -8/Materials | Entered Storage 858 | -8/Storage | Discovered new exit (range 7) 860 | -8/Storage | Lost 5 parts (1p1u3w) 875 | -8/Storage | Core integrity fell below 50% 882 | -8/Storage | Core integrity fell below 20% 883 | -8/Storage | Destroyed by Y-45 Defender with Heavy Assault Rifle Last Messages --------------- (1 escort) A-02 Transporter 6x Hvy. Particle Gun (2 escorts) A-02 Transporter 3x Weight Redist. System 1x Matter (92) A-02 Transporter 3x Hvy. EM Shotgun 3x Cld. Ion Engine (1 escort) 00867_ EM Pulse Cannon destroyed. 00867_ Critical hit (Burn: +37). 00868_ Com. Wheel destroyed. 00871_ Terminal disabled. 00874_ Wheel destroyed. 00876_ Imp. Targeting Computer destroyed. 00877_ Lgt. Nuclear Core destroyed. 00882_ Critical hit (Burn: +37). 00882_ Com. Matter Pod destroyed. Map ----- +----------------------------------------------------+ | | | | | | | | | | | | | | | | | | | | | | | ???????????????????##???????????? | | ???????????????????# ???????????? | | ???????????????????# ???????????? | | ???????????????????# ???????????? | | ???????????????????# ???????????? | | ???????????????????# ???????????? | | ???????????????????# ???????????? | | ???????????????????# ???????????? | | ?????????????###???# ???????????? | | ??????????####"######????######## | | ??######### " ? | | ??# ## < " ? | | ??# ## "#T####???????##### | | ??# Ygg #########?# ???????????? | | ?## g @#?????????# ???????????? | | ?# T"gg#?????????# ????????#### | | ?## Y #?????????# ????????+ | | ??######+########### ????????#### | | ???????# + ????????# | | ???????# ##### ????????# | | ????####+##+## #???# ????????# | | ????# # #???##????????# | | ????# # #?????????????# | | ????#!! # #################" | | ????#! # | | ????# + | | ????# ! """# | | ????# """### ################ | | ???## """#?# #??#???????????? | | ???# #?# #??#???????????? | | ???######/######+####???????????? | | ????????# ????? ??????????????? | | ??????????????? ??????????????? | | ??????????????? ""??????????????? | | ??????????????? ""??????????????? | | ??????????????? ""??????????????? | | ??????????????? ??????????????? | | ?????????????? ????????????????? | | ??????????????" ????????????????? | +----------------------------------------------------+ Best States ------------- Heat Dissipation 31 Energy Generation 14 Energy Capacity 160 Matter Stores 295 Matter Capacity 450 Sight Range 16 Terrain Scan Density 110 Armor Coverage 150 Weapon Shielding 33 Evasion (%) 44 Targeting Accuracy 6 Particle Charging 15 Defensive Hacking 10 Item Schematics ----------------- None Robot Schematics ------------------ None Fabricated ------------ Nothing Alien Tech Used ----------------- None Achievements -------------- Dynamic Key Shopping List Challenges ------------ None Game ------ Seed FocalThermalVibroblade Manual? 0 Play Time 00:39:56 Cumulative 14.0 hours Start 2024.08.21 @ 12:03:21 End 2024.08.21 @ 12:46:01 Sessions 1 Manual Loads 0 Difficulty Rogue Special Mode None Game No. 12 Rogue 12 Adventurer 0 Explorer 0 Win Type - Total 0 Types 0/0/0/0/0/0/0/0/0 Lore% 2 Gallery% 14 Achievement% 14 Wizard Run 0 Options --------- Layout 1 ASCII 0 Keyboard 0 Movement Arrows Keybinds 0 Fullscreen 1 Font 24/Smallcaps Map View 50x35 Zoom Use 0% Tactical HUD 1 Map Filters NONE Filters NONE Steam 1 RUN: 4283d5f9-be23-4027-9bd8-2bb4d096237f